Workbook

Sheet JumpStartInputTool
B2: Department of Behavioral Health and Developmental Services
B3: Division of Developmental Services
B4: Jump-Start Calculator
B6: Select City or County | C6: Henrico County
B8: Select Service | C8: Skilled Nursing
B10: Waiver Enrollees (All waivers) | C10: =IF(C6="","Please Select a City/County",CONCATENATE(VLOOKUP(C6,Master20201031!D:H,5,0)," individual(s) were enrolled on a waiver in ",C6, " as of ", "Nov. 1, 2020.")) -> 677 individual(s) were enrolled on a waiver in Henrico County as of Nov. 1, 2020.
B12: Building Independence Waiver | C12: =IF(C6="","Please Select a City/County",CONCATENATE(VLOOKUP(C6,Master20201031!D:E,2,0)," individual(s) were enrolled on a BI waiver in ",C6, " as of Nov. 1, 2020.")) -> 20 individual(s) were enrolled on a BI waiver in Henrico County as of Nov. 1, 2020.
B14: Total Providers of Selected Service in Selected City/County | C14: =IF(OR(C6="",C8=""),"Please Select Both a City/County and a Service",INDEX(Master20201031!Q4:AE136,MATCH(C6,Master20201031!CityCounty,0),MATCH(C8,Master20201031!JumpStartCategories,0))) -> 1
B16: Recommendations for JumpStart Application:
B17: =IF(("eligible"=IFERROR(HLOOKUP(C8,#REF!,1,FALSE),"eligible")),"","This service is not eligible for Jump-Start Funding.") -> 
B18: Providers are insufficient in this area. Applications will be considered.
B19: There are sufficient providers in this area. You may: (1) Proceed with submission knowing that an increased amount of justification will be necessary, or (2) select a different City/County and/or Service.

Sheet Master20201031 (hidden)
A1: |<--- Location | D1: --->| | E1: |<--- Counts of Individuals | P1: --->| | Q1: |<--- Counts of Providers (defined by distinct TaxIdentifiers) | AF1: --->|
A3: DBHDS Region | B3: SubRegion | C3: CSB | D3: City/County | E3: BI waiver | F3: FIS waiver | G3: CL waiver | H3: All waivers | I3: SIS L1 | J3: SIS L2 | K3: SIS L3 | L3: SIS L4 | M3: SIS L5 | N3: SIS L6 | O3: SIS L7 | P3: SIS Default | Q3: Benefits Planning | R3: Community Coaching | S3: Community Engagement | T3: Community Guide | U3: Electronic Home-Based Services | V3: Employment and Community Transportation | W3: Independent Living Supports | X3: In-home Supports | Y3: Peer Mentoring | Z3: Shared Living | AA3: Supported Living | AB3: Crisis Support Services | AC3: Private Duty Nursing | AD3: Skilled Nursing | AE3: Sponsored Residential | AF3: Total Distinct
A4: 1 | B4: 1-A | C4: RapA | D4: Caroline County | E4: 0 | F4: 9 | G4: 40 | H4: =SUM(E4:G4) -> 49 | I4: 4 | J4: 14 | K4: 3 | L4: 15 | M4: 3 | N4: 4 | O4: 4 | P4: 2 | Q4: 0 | R4: 0 | S4: 0 | T4: 0 | U4: 0 | V4: 0 | W4: 0 | X4: 0 | Y4: 0 | Z4: 0 | AA4: 0 | AB4: 0 | AC4: 0 | AD4: 0 | AE4: 0 | AF4: 0
A5: 1 | B5: 1-A | C5: RapA | D5: Fredericksburg City | E5: 1 | F5: 8 | G5: 49 | H5: 58 | I5: 11 | J5: 18 | K5: 1 | L5: 17 | M5: 4 | N5: 4 | O5: 1 | P5: 2 | Q5: 0 | R5: 1 | S5: 1 | T5: 0 | U5: 0 | V5: 0 | W5: 0 | X5: 1 | Y5: 0 | Z5: 0 | AA5: 1 | AB5: 0 | AC5: 0 | AD5: 0 | AE5: 2 | AF5: 2
A6: 1 | B6: 1-A | C6: RapA | D6: King George County | E6: 0 | F6: 7 | G6: 17 | H6: 24 | I6: 2 | J6: 9 | K6: 0 | L6: 11 | M6: 0 | N6: 1 | O6: 1 | P6: 0 | Q6: 0 | R6: 0 | S6: 1 | T6: 0 | U6: 0 | V6: 0 | W6: 0 | X6: 0 | Y6: 0 | Z6: 0 | AA6: 0 | AB6: 0 | AC6: 0 | AD6: 0 | AE6: 0 | AF6: 1
A7: 1 | B7: 1-A | C7: RapA | D7: Spotsylvania County | E7: 3 | F7: 59 | G7: 208 | H7: 270 | I7: 19 | J7: 77 | K7: 17 | L7: 87 | M7: 10 | N7: 28 | O7: 19 | P7: 13 | Q7: 0 | R7: 1 | S7: 5 | T7: 0 | U7: 0 | V7: 0 | W7: 0 | X7: 1 | Y7: 0 | Z7: 0 | AA7: 0 | AB7: 0 | AC7: 1 | AD7: 0 | AE7: 0 | AF7: 8
A8: 1 | B8: 1-A | C8: RapA | D8: Stafford County | E8: 3 | F8: 58 | G8: 173 | H8: 234 | I8: 13 | J8: 64 | K8: 11 | L8: 79 | M8: 10 | N8: 29 | O8: 19 | P8: 9 | Q8: 0 | R8: 0 | S8: 2 | T8: 0 | U8: 0 | V8: 0 | W8: 0 | X8: 1 | Y8: 0 | Z8: 0 | AA8: 0 | AB8: 0 | AC8: 3 | AD8: 0 | AE8: 0 | AF8: 6
A9: 1 | B9: 1-A | C9: RapR | D9: Culpeper County | E9: 2 | F9: 13 | G9: 81 | H9: 96 | I9: 18 | J9: 44 | K9: 1 | L9: 20 | M9: 0 | N9: 6 | O9: 3 | P9: 4 | Q9: 0 | R9: 0 | S9: 3 | T9: 0 | U9: 0 | V9: 0 | W9: 0 | X9: 0 | Y9: 0 | Z9: 0 | AA9: 0 | AB9: 0 | AC9: 0 | AD9: 1 | AE9: 0 | AF9: 3
A10: 1 | B10: 1-A | C10: RapR | D10: Madison County | E10: 0 | F10: 3 | G10: 18 | H10: 21 | I10: 4 | J10: 10 | K10: 0 | L10: 5 | M10: 1 | N10: 0 | O10: 0 | P10: 1 | Q10: 0 | R10: 0 | S10: 0 | T10: 0 | U10: 0 | V10: 0 | W10: 0 | X10: 0 | Y10: 0 | Z10: 0 | AA10: 0 | AB10: 0 | AC10: 0 | AD10: 0 | AE10: 0 | AF10: 0
A11: 1 | B11: 1-A | C11: RapR | D11: Orange County | E11: 3 | F11: 23 | G11: 40 | H11: 66 | I11: 15 | J11: 25 | K11: 1 | L11: 16 | M11: 2 | N11: 2 | O11: 1 | P11: 4 | Q11: 0 | R11: 0 | S11: 0 | T11: 0 | U11: 0 | V11: 0 | W11: 0 | X11: 0 | Y11: 0 | Z11: 0 | AA11: 0 | AB11: 0 | AC11: 0 | AD11: 1 | AE11: 0 | AF11: 1
A12: 1 | B12: 1-A | C12: RapR | D12: Fauquier County | E12: 0 | F12: 31 | G12: 57 | H12: 88 | I12: 7 | J12: 33 | K12: 1 | L12: 30 | M12: 4 | N12: 8 | O12: 2 | P12: 3 | Q12: 0 | R12: 0 | S12: 0 | T12: 0 | U12: 1 | V12: 0 | W12: 0 | X12: 0 | Y12: 0 | Z12: 0 | AA12: 0 | AB12: 0 | AC12: 1 | AD12: 1 | AE12: 0 | AF12: 3
A13: 1 | B13: 1-A | C13: RapR | D13: Rappahannock County | E13: 0 | F13: 2 | G13: 8 | H13: 10 | I13: 1 | J13: 3 | K13: 0 | L13: 5 | M13: 0 | N13: 0 | O13: 0 | P13: 1 | Q13: 0 | R13: 0 | S13: 0 | T13: 0 | U13: 1 | V13: 0 | W13: 0 | X13: 0 | Y13: 0 | Z13: 0 | AA13: 0 | AB13: 0 | AC13: 0 | AD13: 0 | AE13: 0 | AF13: 1
A14: 1 | B14: 1-B | C14: VLY | D14: Augusta County | E14: 1 | F14: 26 | G14: 135 | H14: 162 | I14: 5 | J14: 39 | K14: 4 | L14: 56 | M14: 9 | N14: 23 | O14: 19 | P14: 7 | Q14: 0 | R14: 1 | S14: 1 | T14: 0 | U14: 0 | V14: 0 | W14: 0 | X14: 2 | Y14: 0 | Z14: 0 | AA14: 0 | AB14: 0 | AC14: 0 | AD14: 0 | AE14: 2 | AF14: 2
A15: 1 | B15: 1-B | C15: VLY | D15: Highland County | E15: 0 | F15: 0 | G15: 8 | H15: 8 | I15: 0 | J15: 1 | K15: 0 | L15: 2 | M15: 3 | N15: 0 | O15: 2 | P15: 0 | Q15: 0 | R15: 0 | S15: 0 | T15: 0 | U15: 0 | V15: 0 | W15: 0 | X15: 0 | Y15: 0 | Z15: 0 | AA15: 0 | AB15: 0 | AC15: 0 | AD15: 0 | AE15: 0 | AF15: 0
A16: 1 | B16: 1-B | C16: VLY | D16: Staunton City | E16: 2 | F16: 16 | G16: 49 | H16: 67 | I16: 6 | J16: 13 | K16: 4 | L16: 21 | M16: 1 | N16: 8 | O16: 2 | P16: 12 | Q16: 0 | R16: 0 | S16: 2 | T16: 0 | U16: 0 | V16: 0 | W16: 0 | X16: 1 | Y16: 0 | Z16: 0 | AA16: 0 | AB16: 0 | AC16: 0 | AD16: 1 | AE16: 2 | AF16: 2
A17: 1 | B17: 1-B | C17: VLY | D17: Waynesboro City | E17: 0 | F17: 6 | G17: 69 | H17: 75 | I17: 3 | J17: 19 | K17: 6 | L17: 27 | M17: 3 | N17: 7 | O17: 7 | P17: 3 | Q17: 0 | R17: 0 | S17: 0 | T17: 0 | U17: 0 | V17: 0 | W17: 0 | X17: 0 | Y17: 0 | Z17: 0 | AA17: 0 | AB17: 0 | AC17: 0 | AD17: 0 | AE17: 1 | AF17: 1
A18: 1 | B18: 1-B | C18: ALLE | D18: Alleghany County | E18: 1 | F18: 11 | G18: 35 | H18: 47 | I18: 4 | J18: 17 | K18: 0 | L18: 14 | M18: 0 | N18: 6 | O18: 3 | P18: 3 | Q18: 0 | R18: 0 | S18: 1 | T18: 0 | U18: 0 | V18: 0 | W18: 0 | X18: 2 | Y18: 0 | Z18: 0 | AA18: 0 | AB18: 0 | AC18: 0 | AD18: 0 | AE18: 0 | AF18: 2
A19: 1 | B19: 1-B | C19: ALLE | D19: Covington City | E19: 0 | F19: 1 | G19: 14 | H19: 15 | I19: 1 | J19: 4 | K19: 1 | L19: 3 | M19: 1 | N19: 0 | O19: 1 | P19: 4 | Q19: 0 | R19: 0 | S19: 1 | T19: 0 | U19: 0 | V19: 0 | W19: 0 | X19: 1 | Y19: 0 | Z19: 0 | AA19: 0 | AB19: 0 | AC19: 0 | AD19: 1 | AE19: 0 | AF19: 1
A20: 1 | B20: 1-B | C20: ROC | D20: Bath County | E20: 0 | F20: 1 | G20: 8 | H20: 9 | I20: 1 | J20: 1 | K20: 1 | L20: 5 | M20: 0 | N20: 1 | O20: 0 | P20: 0 | Q20: 0 | R20: 0 | S20: 0 | T20: 0 | U20: 0 | V20: 0 | W20: 0 | X20: 0 | Y20: 0 | Z20: 0 | AA20: 0 | AB20: 0 | AC20: 0 | AD20: 0 | AE20: 0 | AF20: 0
A21: 1 | B21: 1-B | C21: ROC | D21: Buena Vista City | E21: 0 | F21: 0 | G21: 7 | H21: 7 | I21: 0 | J21: 3 | K21: 1 | L21: 3 | M21: 0 | N21: 0 | O21: 0 | P21: 0 | Q21: 0 | R21: 0 | S21: 0 | T21: 0 | U21: 0 | V21: 0 | W21: 0 | X21: 0 | Y21: 0 | Z21: 0 | AA21: 0 | AB21: 0 | AC21: 0 | AD21: 0 | AE21: 0 | AF21: 0
A22: 1 | B22: 1-B | C22: ROC | D22: Lexington City | E22: 0 | F22: 0 | G22: 4 | H22: 4 | I22: 1 | J22: 1 | K22: 0 | L22: 1 | M22: 0 | N22: 0 | O22: 1 | P22: 0 | Q22: 0 | R22: 0 | S22: 1 | T22: 0 | U22: 0 | V22: 0 | W22: 0 | X22: 0 | Y22: 0 | Z22: 0 | AA22: 0 | AB22: 0 | AC22: 0 | AD22: 0 | AE22: 0 | AF22: 1
A23: 1 | B23: 1-B | C23: ROC | D23: Rockbridge County | E23: 0 | F23: 8 | G23: 52 | H23: 60 | I23: 3 | J23: 15 | K23: 4 | L23: 23 | M23: 2 | N23: 2 | O23: 9 | P23: 2 | Q23: 0 | R23: 0 | S23: 1 | T23: 0 | U23: 0 | V23: 0 | W23: 0 | X23: 0 | Y23: 0 | Z23: 0 | AA23: 0 | AB23: 0 | AC23: 0 | AD23: 0 | AE23: 0 | AF23: 1
A24: 1 | B24: 1-C | C24: HARR | D24: Harrisonburg City | E24: 2 | F24: 15 | G24: 62 | H24: 79 | I24: 17 | J24: 24 | K24: 4 | L24: 25 | M24: 1 | N24: 5 | O24: 1 | P24: 2 | Q24: 0 | R24: 0 | S24: 0 | T24: 1 | U24: 0 | V24: 0 | W24: 0 | X24: 0 | Y24: 0 | Z24: 0 | AA24: 1 | AB24: 0 | AC24: 0 | AD24: 0 | AE24: 0 | AF24: 2
A25: 1 | B25: 1-C | C25: HARR | D25: Rockingham County | E25: 2 | F25: 36 | G25: 110 | H25: 148 | I25: 12 | J25: 48 | K25: 4 | L25: 51 | M25: 5 | N25: 16 | O25: 4 | P25: 8 | Q25: 0 | R25: 3 | S25: 3 | T25: 0 | U25: 0 | V25: 0 | W25: 1 | X25: 3 | Y25: 0 | Z25: 0 | AA25: 1 | AB25: 0 | AC25: 0 | AD25: 2 | AE25: 2 | AF25: 5
A26: 1 | B26: 1-C | C26: NW | D26: Frederick County | E26: 3 | F26: 38 | G26: 111 | H26: 152 | I26: 8 | J26: 54 | K26: 9 | L26: 51 | M26: 2 | N26: 13 | O26: 8 | P26: 7 | Q26: 0 | R26: 1 | S26: 2 | T26: 0 | U26: 0 | V26: 0 | W26: 0 | X26: 2 | Y26: 0 | Z26: 0 | AA26: 0 | AB26: 0 | AC26: 0 | AD26: 1 | AE26: 1 | AF26: 2
A27: 1 | B27: 1-C | C27: NW | D27: Page County | E27: 0 | F27: 9 | G27: 20 | H27: 29 | I27: 2 | J27: 11 | K27: 2 | L27: 7 | M27: 2 | N27: 3 | O27: 2 | P27: 0 | Q27: 0 | R27: 0 | S27: 0 | T27: 0 | U27: 0 | V27: 0 | W27: 0 | X27: 0 | Y27: 0 | Z27: 0 | AA27: 0 | AB27: 0 | AC27: 0 | AD27: 0 | AE27: 0 | AF27: 0
A28: 1 | B28: 1-C | C28: NW | D28: Shenandoah County | E28: 2 | F28: 20 | G28: 87 | H28: 109 | I28: 3 | J28: 44 | K28: 4 | L28: 47 | M28: 1 | N28: 8 | O28: 1 | P28: 1 | Q28: 0 | R28: 0 | S28: 2 | T28: 0 | U28: 0 | V28: 0 | W28: 0 | X28: 0 | Y28: 0 | Z28: 0 | AA28: 0 | AB28: 0 | AC28: 0 | AD28: 0 | AE28: 0 | AF28: 2
A29: 1 | B29: 1-C | C29: NW | D29: Warren County | E29: 2 | F29: 27 | G29: 17 | H29: 46 | I29: 7 | J29: 18 | K29: 2 | L29: 13 | M29: 0 | N29: 3 | O29: 1 | P29: 2 | Q29: 0 | R29: 0 | S29: 1 | T29: 0 | U29: 0 | V29: 0 | W29: 0 | X29: 1 | Y29: 0 | Z29: 0 | AA29: 0 | AB29: 0 | AC29: 0 | AD29: 0 | AE29: 0 | AF29: 2
A30: 1 | B30: 1-C | C30: NW | D30: Winchester City | E30: 1 | F30: 16 | G30: 69 | H30: 86 | I30: 10 | J30: 35 | K30: 6 | L30: 26 | M30: 1 | N30: 2 | O30: 6 | P30: 0 | Q30: 0 | R30: 2 | S30: 4 | T30: 0 | U30: 0 | V30: 0 | W30: 0 | X30: 0 | Y30: 0 | Z30: 0 | AA30: 1 | AB30: 0 | AC30: 0 | AD30: 0 | AE30: 0 | AF30: 4
A31: 1 | B31: 1-C | C31: NW | D31: Clarke County | E31: 0 | F31: 5 | G31: 14 | H31: 19 | I31: 1 | J31: 12 | K31: 1 | L31: 5 | M31: 0 | N31: 0 | O31: 0 | P31: 0 | Q31: 0 | R31: 0 | S31: 0 | T31: 0 | U31: 0 | V31: 0 | W31: 0 | X31: 0 | Y31: 0 | Z31: 0 | AA31: 0 | AB31: 0 | AC31: 0 | AD31: 0 | AE31: 0 | AF31: 0
A32: 1 | B32: 1-D | C32: RTEN | D32: Nelson County | E32: 0 | F32: 8 | G32: 28 | H32: 36 | I32: 2 | J32: 12 | K32: 1 | L32: 15 | M32: 1 | N32: 3 | O32: 2 | P32: 0 | Q32: 0 | R32: 0 | S32: 1 | T32: 0 | U32: 0 | V32: 0 | W32: 0 | X32: 0 | Y32: 0 | Z32: 0 | AA32: 0 | AB32: 0 | AC32: 0 | AD32: 0 | AE32: 0 | AF32: 1
A33: 1 | B33: 1-D | C33: RTEN | D33: Louisa County | E33: 2 | F33: 23 | G33: 33 | H33: 58 | I33: 3 | J33: 19 | K33: 1 | L33: 15 | M33: 2 | N33: 3 | O33: 3 | P33: 12 | Q33: 0 | R33: 0 | S33: 1 | T33: 0 | U33: 0 | V33: 0 | W33: 0 | X33: 0 | Y33: 0 | Z33: 0 | AA33: 0 | AB33: 0 | AC33: 0 | AD33: 0 | AE33: 0 | AF33: 1
A34: 1 | B34: 1-D | C34: RTEN | D34: Albemarle County | E34: 5 | F34: 41 | G34: 93 | H34: 139 | I34: 16 | J34: 47 | K34: 4 | L34: 50 | M34: 2 | N34: 9 | O34: 5 | P34: 6 | Q34: 0 | R34: 2 | S34: 3 | T34: 0 | U34: 0 | V34: 0 | W34: 1 | X34: 3 | Y34: 0 | Z34: 0 | AA34: 0 | AB34: 0 | AC34: 1 | AD34: 1 | AE34: 3 | AF34: 5
A35: 1 | B35: 1-D | C35: RTEN | D35: Charlottesville City | E35: 2 | F35: 15 | G35: 69 | H35: 86 | I35: 12 | J35: 34 | K35: 0 | L35: 27 | M35: 0 | N35: 11 | O35: 0 | P35: 2 | Q35: 0 | R35: 0 | S35: 0 | T35: 0 | U35: 0 | V35: 0 | W35: 0 | X35: 0 | Y35: 0 | Z35: 0 | AA35: 0 | AB35: 0 | AC35: 0 | AD35: 0 | AE35: 0 | AF35: 0
A36: 1 | B36: 1-D | C36: RTEN | D36: Fluvanna County | E36: 0 | F36: 7 | G36: 15 | H36: 22 | I36: 2 | J36: 8 | K36: 0 | L36: 3 | M36: 0 | N36: 5 | O36: 1 | P36: 3 | Q36: 0 | R36: 0 | S36: 0 | T36: 0 | U36: 0 | V36: 0 | W36: 0 | X36: 0 | Y36: 0 | Z36: 0 | AA36: 0 | AB36: 0 | AC36: 0 | AD36: 0 | AE36: 0 | AF36: 0
A37: 1 | B37: 1-D | C37: RTEN | D37: Greene County | E37: 0 | F37: 8 | G37: 14 | H37: 22 | I37: 3 | J37: 6 | K37: 0 | L37: 7 | M37: 1 | N37: 4 | O37: 1 | P37: 0 | Q37: 0 | R37: 0 | S37: 0 | T37: 0 | U37: 0 | V37: 0 | W37: 0 | X37: 0 | Y37: 0 | Z37: 0 | AA37: 0 | AB37: 0 | AC37: 0 | AD37: 0 | AE37: 0 | AF37: 0
A38: 1 | B38: 1-D | C38: HORI | D38: Amherst County | E38: 0 | F38: 18 | G38: 163 | H38: 181 | I38: 4 | J38: 30 | K38: 5 | L38: 80 | M38: 10 | N38: 23 | O38: 26 | P38: 3 | Q38: 0 | R38: 1 | S38: 1 | T38: 0 | U38: 0 | V38: 0 | W38: 0 | X38: 0 | Y38: 0 | Z38: 0 | AA38: 0 | AB38: 0 | AC38: 0 | AD38: 1 | AE38: 3 | AF38: 3
A39: 1 | B39: 1-D | C39: HORI | D39: Appomattox County | E39: 0 | F39: 10 | G39: 28 | H39: 38 | I39: 2 | J39: 12 | K39: 1 | L39: 9 | M39: 4 | N39: 5 | O39: 4 | P39: 1 | Q39: 0 | R39: 0 | S39: 0 | T39: 0 | U39: 0 | V39: 0 | W39: 0 | X39: 1 | Y39: 0 | Z39: 0 | AA39: 0 | AB39: 0 | AC39: 0 | AD39: 0 | AE39: 1 | AF39: 1
A40: 1 | B40: 1-D | C40: HORI | D40: Bedford County | E40: 1 | F40: 32 | G40: 159 | H40: 192 | I40: 6 | J40: 35 | K40: 2 | L40: 79 | M40: 10 | N40: 30 | O40: 18 | P40: 12 | Q40: 0 | R40: 1 | S40: 4 | T40: 0 | U40: 0 | V40: 0 | W40: 0 | X40: 2 | Y40: 0 | Z40: 0 | AA40: 0 | AB40: 0 | AC40: 0 | AD40: 1 | AE40: 4 | AF40: 5
A41: 1 | B41: 1-D | C41: HORI | D41: Campbell County | E41: 2 | F41: 33 | G41: 147 | H41: 182 | I41: 7 | J41: 36 | K41: 7 | L41: 68 | M41: 12 | N41: 33 | O41: 16 | P41: 3 | Q41: 0 | R41: 0 | S41: 0 | T41: 0 | U41: 0 | V41: 0 | W41: 0 | X41: 0 | Y41: 0 | Z41: 0 | AA41: 0 | AB41: 0 | AC41: 0 | AD41: 0 | AE41: 0 | AF41: 0
A42: 1 | B42: 1-D | C42: HORI | D42: Lynchburg City | E42: 2 | F42: 43 | G42: 187 | H42: 232 | I42: 15 | J42: 66 | K42: 9 | L42: 80 | M42: 7 | N42: 31 | O42: 17 | P42: 7 | Q42: 0 | R42: 1 | S42: 2 | T42: 0 | U42: 0 | V42: 0 | W42: 1 | X42: 2 | Y42: 0 | Z42: 0 | AA42: 0 | AB42: 0 | AC42: 0 | AD42: 1 | AE42: 9 | AF42: 9
A43: 2 | B43: 2-A | C43: ALEX | D43: Alexandria City | E43: 3 | F43: 26 | G43: 74 | H43: 103 | I43: 12 | J43: 39 | K43: 5 | L43: 36 | M43: 1 | N43: 3 | O43: 1 | P43: 6 | Q43: 0 | R43: 0 | S43: 1 | T43: 0 | U43: 0 | V43: 0 | W43: 0 | X43: 1 | Y43: 0 | Z43: 0 | AA43: 1 | AB43: 0 | AC43: 2 | AD43: 0 | AE43: 0 | AF43: 3
A44: 2 | B44: 2-A | C44: ARLI | D44: Arlington County | E44: 5 | F44: 58 | G44: 109 | H44: 172 | I44: 10 | J44: 55 | K44: 7 | L44: 58 | M44: 5 | N44: 11 | O44: 11 | P44: 15 | Q44: 0 | R44: 0 | S44: 0 | T44: 0 | U44: 0 | V44: 0 | W44: 0 | X44: 1 | Y44: 0 | Z44: 0 | AA44: 0 | AB44: 0 | AC44: 0 | AD44: 0 | AE44: 0 | AF44: 1
A45: 2 | B45: 2-B | C45: FFFC | D45: Fairfax City | E45: 0 | F45: 1 | G45: 6 | H45: 7 | I45: 0 | J45: 2 | K45: 0 | L45: 4 | M45: 0 | N45: 0 | O45: 1 | P45: 0 | Q45: 0 | R45: 0 | S45: 0 | T45: 0 | U45: 0 | V45: 0 | W45: 0 | X45: 0 | Y45: 0 | Z45: 0 | AA45: 0 | AB45: 0 | AC45: 0 | AD45: 0 | AE45: 0 | AF45: 0
A46: 2 | B46: 2-B | C46: FFFC | D46: Fairfax County | E46: 23 | F46: 420 | G46: 892 | H46: 1335 | I46: 77 | J46: 346 | K46: 55 | L46: 489 | M46: 38 | N46: 121 | O46: 113 | P46: 96 | Q46: 0 | R46: 6 | S46: 7 | T46: 1 | U46: 0 | V46: 0 | W46: 1 | X46: 16 | Y46: 0 | Z46: 0 | AA46: 3 | AB46: 1 | AC46: 23 | AD46: 5 | AE46: 2 | AF46: 45
A47: 2 | B47: 2-B | C47: FFFC | D47: Falls Church City | E47: 0 | F47: 0 | G47: 2 | H47: 2 | I47: 0 | J47: 0 | K47: 1 | L47: 0 | M47: 0 | N47: 0 | O47: 1 | P47: 0 | Q47: 0 | R47: 0 | S47: 0 | T47: 0 | U47: 0 | V47: 0 | W47: 0 | X47: 0 | Y47: 0 | Z47: 0 | AA47: 0 | AB47: 0 | AC47: 2 | AD47: 0 | AE47: 0 | AF47: 2
A48: 2 | B48: 2-C | C48: LOUD | D48: Loudoun County | E48: 11 | F48: 99 | G48: 174 | H48: 284 | I48: 19 | J48: 74 | K48: 13 | L48: 95 | M48: 8 | N48: 37 | O48: 19 | P48: 19 | Q48: 0 | R48: 0 | S48: 2 | T48: 0 | U48: 0 | V48: 0 | W48: 0 | X48: 3 | Y48: 0 | Z48: 0 | AA48: 0 | AB48: 0 | AC48: 8 | AD48: 4 | AE48: 0 | AF48: 10
A49: 2 | B49: 2-D | C49: PWC | D49: Manassas City | E49: 0 | F49: 2 | G49: 15 | H49: 17 | I49: 1 | J49: 9 | K49: 0 | L49: 7 | M49: 0 | N49: 0 | O49: 0 | P49: 0 | Q49: 0 | R49: 0 | S49: 1 | T49: 0 | U49: 0 | V49: 0 | W49: 0 | X49: 0 | Y49: 0 | Z49: 0 | AA49: 0 | AB49: 0 | AC49: 0 | AD49: 0 | AE49: 0 | AF49: 1
A50: 2 | B50: 2-D | C50: PWC | D50: Manassas Park City | E50: 0 | F50: 1 | G50: 3 | H50: 4 | I50: 0 | J50: 2 | K50: 1 | L50: 0 | M50: 0 | N50: 0 | O50: 1 | P50: 0 | Q50: 0 | R50: 0 | S50: 0 | T50: 0 | U50: 0 | V50: 0 | W50: 0 | X50: 0 | Y50: 0 | Z50: 0 | AA50: 0 | AB50: 0 | AC50: 0 | AD50: 0 | AE50: 0 | AF50: 0
A51: 2 | B51: 2-D | C51: PWC | D51: Prince William County | E51: 12 | F51: 151 | G51: 390 | H51: 553 | I51: 9 | J51: 162 | K51: 30 | L51: 195 | M51: 18 | N51: 61 | O51: 31 | P51: 47 | Q51: 1 | R51: 1 | S51: 2 | T51: 1 | U51: 0 | V51: 0 | W51: 0 | X51: 3 | Y51: 0 | Z51: 0 | AA51: 0 | AB51: 1 | AC51: 11 | AD51: 4 | AE51: 2 | AF51: 19
A52: 3 | B52: 3-A | C52: BLUE | D52: Botetourt County | E52: 0 | F52: 18 | G52: 27 | H52: 45 | I52: 0 | J52: 10 | K52: 1 | L52: 19 | M52: 2 | N52: 10 | O52: 2 | P52: 1 | Q52: 0 | R52: 1 | S52: 2 | T52: 0 | U52: 0 | V52: 0 | W52: 0 | X52: 0 | Y52: 0 | Z52: 0 | AA52: 0 | AB52: 0 | AC52: 0 | AD52: 1 | AE52: 0 | AF52: 2
A53: 3 | B53: 3-A | C53: BLUE | D53: Craig County | E53: 1 | F53: 4 | G53: 3 | H53: 8 | I53: 1 | J53: 3 | K53: 0 | L53: 1 | M53: 1 | N53: 2 | O53: 0 | P53: 0 | Q53: 0 | R53: 0 | S53: 0 | T53: 0 | U53: 0 | V53: 0 | W53: 0 | X53: 1 | Y53: 0 | Z53: 0 | AA53: 0 | AB53: 0 | AC53: 0 | AD53: 0 | AE53: 0 | AF53: 1
A54: 3 | B54: 3-A | C54: BLUE | D54: Roanoke City | E54: 11 | F54: 30 | G54: 104 | H54: 145 | I54: 11 | J54: 44 | K54: 8 | L54: 46 | M54: 9 | N54: 12 | O54: 11 | P54: 4 | Q54: 0 | R54: 2 | S54: 4 | T54: 0 | U54: 0 | V54: 0 | W54: 1 | X54: 1 | Y54: 0 | Z54: 0 | AA54: 0 | AB54: 0 | AC54: 1 | AD54: 2 | AE54: 3 | AF54: 7
A55: 3 | B55: 3-A | C55: BLUE | D55: Roanoke County | E55: 7 | F55: 49 | G55: 193 | H55: 249 | I55: 16 | J55: 65 | K55: 12 | L55: 98 | M55: 5 | N55: 20 | O55: 21 | P55: 12 | Q55: 0 | R55: 1 | S55: 4 | T55: 0 | U55: 0 | V55: 0 | W55: 1 | X55: 4 | Y55: 0 | Z55: 0 | AA55: 0 | AB55: 0 | AC55: 0 | AD55: 1 | AE55: 5 | AF55: 6
A56: 3 | B56: 3-A | C56: BLUE | D56: Salem City | E56: 1 | F56: 7 | G56: 31 | H56: 39 | I56: 1 | J56: 14 | K56: 3 | L56: 16 | M56: 1 | N56: 2 | O56: 1 | P56: 1 | Q56: 0 | R56: 3 | S56: 4 | T56: 0 | U56: 0 | V56: 0 | W56: 0 | X56: 3 | Y56: 0 | Z56: 0 | AA56: 0 | AB56: 0 | AC56: 1 | AD56: 3 | AE56: 0 | AF56: 7
A57: 3 | B57: 3-A | C57: NRV | D57: Giles County | E57: 0 | F57: 5 | G57: 30 | H57: 35 | I57: 0 | J57: 4 | K57: 3 | L57: 17 | M57: 3 | N57: 6 | O57: 1 | P57: 1 | Q57: 0 | R57: 1 | S57: 0 | T57: 0 | U57: 0 | V57: 0 | W57: 0 | X57: 0 | Y57: 0 | Z57: 0 | AA57: 0 | AB57: 1 | AC57: 0 | AD57: 0 | AE57: 0 | AF57: 1
A58: 3 | B58: 3-A | C58: NRV | D58: Montgomery County | E58: 0 | F58: 42 | G58: 90 | H58: 132 | I58: 15 | J58: 25 | K58: 5 | L58: 40 | M58: 4 | N58: 16 | O58: 20 | P58: 7 | Q58: 0 | R58: 2 | S58: 3 | T58: 0 | U58: 0 | V58: 0 | W58: 0 | X58: 3 | Y58: 0 | Z58: 0 | AA58: 0 | AB58: 1 | AC58: 2 | AD58: 1 | AE58: 2 | AF58: 4
A59: 3 | B59: 3-B | C59: PDMT | D59: Franklin County | E59: 5 | F59: 14 | G59: 87 | H59: 106 | I59: 3 | J59: 33 | K59: 9 | L59: 37 | M59: 6 | N59: 15 | O59: 3 | P59: 0 | Q59: 0 | R59: 0 | S59: 1 | T59: 0 | U59: 0 | V59: 0 | W59: 0 | X59: 0 | Y59: 0 | Z59: 0 | AA59: 0 | AB59: 0 | AC59: 0 | AD59: 0 | AE59: 0 | AF59: 1
A60: 3 | B60: 3-B | C60: DANV | D60: Danville City | E60: 17 | F60: 27 | G60: 161 | H60: 205 | I60: 23 | J60: 51 | K60: 5 | L60: 76 | M60: 6 | N60: 18 | O60: 19 | P60: 7 | Q60: 0 | R60: 2 | S60: 4 | T60: 1 | U60: 0 | V60: 0 | W60: 2 | X60: 6 | Y60: 0 | Z60: 0 | AA60: 1 | AB60: 0 | AC60: 1 | AD60: 2 | AE60: 2 | AF60: 9
A61: 3 | B61: 3-B | C61: DANV | D61: Pittsylvania County | E61: 12 | F61: 23 | G61: 138 | H61: 173 | I61: 8 | J61: 43 | K61: 7 | L61: 72 | M61: 5 | N61: 14 | O61: 16 | P61: 8 | Q61: 0 | R61: 0 | S61: 1 | T61: 0 | U61: 0 | V61: 0 | W61: 0 | X61: 0 | Y61: 0 | Z61: 0 | AA61: 0 | AB61: 0 | AC61: 0 | AD61: 0 | AE61: 0 | AF61: 1
A62: 3 | B62: 3-B | C62: PDMT | D62: Henry County | E62: 2 | F62: 18 | G62: 91 | H62: 111 | I62: 10 | J62: 32 | K62: 6 | L62: 40 | M62: 0 | N62: 10 | O62: 10 | P62: 3 | Q62: 0 | R62: 0 | S62: 0 | T62: 0 | U62: 0 | V62: 0 | W62: 0 | X62: 0 | Y62: 0 | Z62: 0 | AA62: 0 | AB62: 0 | AC62: 0 | AD62: 0 | AE62: 0 | AF62: 0
A63: 3 | B63: 3-B | C63: PDMT | D63: Martinsville City | E63: 0 | F63: 6 | G63: 34 | H63: 40 | I63: 4 | J63: 19 | K63: 1 | L63: 8 | M63: 2 | N63: 3 | O63: 2 | P63: 1 | Q63: 0 | R63: 0 | S63: 1 | T63: 0 | U63: 0 | V63: 0 | W63: 0 | X63: 1 | Y63: 0 | Z63: 0 | AA63: 0 | AB63: 0 | AC63: 0 | AD63: 0 | AE63: 0 | AF63: 2
A64: 3 | B64: 3-B | C64: SS | D64: Halifax County | E64: 1 | F64: 11 | G64: 76 | H64: 88 | I64: 9 | J64: 35 | K64: 5 | L64: 31 | M64: 2 | N64: 3 | O64: 2 | P64: 1 | Q64: 0 | R64: 1 | S64: 1 | T64: 0 | U64: 0 | V64: 0 | W64: 0 | X64: 0 | Y64: 0 | Z64: 0 | AA64: 0 | AB64: 0 | AC64: 0 | AD64: 0 | AE64: 0 | AF64: 1
A65: 3 | B65: 3-B | C65: SS | D65: Mecklenburg County | E65: 0 | F65: 9 | G65: 86 | H65: 95 | I65: 2 | J65: 35 | K65: 0 | L65: 44 | M65: 2 | N65: 5 | O65: 7 | P65: 0 | Q65: 0 | R65: 1 | S65: 1 | T65: 0 | U65: 0 | V65: 0 | W65: 0 | X65: 0 | Y65: 0 | Z65: 0 | AA65: 0 | AB65: 0 | AC65: 0 | AD65: 1 | AE65: 1 | AF65: 2
A66: 3 | B66: 3-B | C66: SS | D66: Brunswick County | E66: 0 | F66: 0 | G66: 33 | H66: 33 | I66: 1 | J66: 13 | K66: 0 | L66: 15 | M66: 2 | N66: 2 | O66: 0 | P66: 0 | Q66: 0 | R66: 0 | S66: 1 | T66: 0 | U66: 0 | V66: 0 | W66: 0 | X66: 0 | Y66: 0 | Z66: 0 | AA66: 0 | AB66: 0 | AC66: 0 | AD66: 0 | AE66: 0 | AF66: 1
A67: 3 | B67: 3-B | C67: PDMT | D67: Patrick County | E67: 1 | F67: 3 | G67: 20 | H67: 24 | I67: 0 | J67: 8 | K67: 0 | L67: 10 | M67: 2 | N67: 4 | O67: 0 | P67: 0 | Q67: 0 | R67: 0 | S67: 1 | T67: 0 | U67: 0 | V67: 0 | W67: 0 | X67: 0 | Y67: 0 | Z67: 0 | AA67: 0 | AB67: 0 | AC67: 0 | AD67: 0 | AE67: 0 | AF67: 1
A68: 3 | B68: 3-C | C68: MTRG | D68: Carroll County | E68: 1 | F68: 13 | G68: 187 | H68: =SUM(E68:G68) -> 201 | I68: 0 | J68: 21 | K68: 6 | L68: 76 | M68: 35 | N68: 32 | O68: 27 | P68: 4 | Q68: 0 | R68: 0 | S68: 0 | T68: 0 | U68: 0 | V68: 0 | W68: 0 | X68: 0 | Y68: 0 | Z68: 0 | AA68: 0 | AB68: 0 | AC68: 0 | AD68: 0 | AE68: 1 | AF68: 1
A69: 3 | B69: 3-C | C69: MTRG | D69: Galax City | E69: 0 | F69: 2 | G69: 32 | H69: 34 | I69: 0 | J69: 7 | K69: 0 | L69: 14 | M69: 3 | N69: 1 | O69: 7 | P69: 2 | Q69: 0 | R69: 0 | S69: 4 | T69: 0 | U69: 0 | V69: 0 | W69: 0 | X69: 1 | Y69: 0 | Z69: 0 | AA69: 0 | AB69: 0 | AC69: 0 | AD69: 1 | AE69: 3 | AF69: 5
A70: 3 | B70: 3-C | C70: MTRG | D70: Grayson County | E70: 1 | F70: 2 | G70: 33 | H70: 36 | I70: 0 | J70: 5 | K70: 1 | L70: 20 | M70: 3 | N70: 6 | O70: 1 | P70: 0 | Q70: 0 | R70: 0 | S70: 0 | T70: 0 | U70: 0 | V70: 0 | W70: 0 | X70: 0 | Y70: 0 | Z70: 0 | AA70: 0 | AB70: 0 | AC70: 0 | AD70: 0 | AE70: 0 | AF70: 0
A71: 3 | B71: 3-C | C71: MTRG | D71: Bland County | E71: 0 | F71: 2 | G71: 9 | H71: 11 | I71: 0 | J71: 2 | K71: 0 | L71: 8 | M71: 0 | N71: 1 | O71: 0 | P71: 0 | Q71: 0 | R71: 0 | S71: 0 | T71: 0 | U71: 0 | V71: 0 | W71: 0 | X71: 0 | Y71: 0 | Z71: 0 | AA71: 0 | AB71: 0 | AC71: 0 | AD71: 0 | AE71: 0 | AF71: 0
A72: 3 | B72: 3-C | C72: MTRG | D72: Wythe County | E72: 0 | F72: 7 | G72: 68 | H72: 75 | I72: 2 | J72: 11 | K72: 1 | L72: 33 | M72: 13 | N72: 9 | O72: 5 | P72: 1 | Q72: 0 | R72: 1 | S72: 1 | T72: 0 | U72: 0 | V72: 0 | W72: 0 | X72: 0 | Y72: 0 | Z72: 0 | AA72: 1 | AB72: 0 | AC72: 1 | AD72: 1 | AE72: 2 | AF72: 3
A73: 3 | B73: 3-C | C73: NRV | D73: Floyd County | E73: 0 | F73: 12 | G73: 42 | H73: 54 | I73: 1 | J73: 8 | K73: 1 | L73: 21 | M73: 1 | N73: 10 | O73: 10 | P73: 2 | Q73: 0 | R73: 2 | S73: 1 | T73: 0 | U73: 0 | V73: 0 | W73: 0 | X73: 2 | Y73: 0 | Z73: 0 | AA73: 0 | AB73: 0 | AC73: 1 | AD73: 1 | AE73: 2 | AF73: 3
A74: 3 | B74: 3-C | C74: NRV | D74: Pulaski County | E74: 0 | F74: 26 | G74: 42 | H74: 68 | I74: 1 | J74: 12 | K74: 2 | L74: 24 | M74: 2 | N74: 9 | O74: 12 | P74: 6 | Q74: 0 | R74: 0 | S74: 0 | T74: 0 | U74: 0 | V74: 0 | W74: 0 | X74: 0 | Y74: 0 | Z74: 0 | AA74: 0 | AB74: 0 | AC74: 0 | AD74: 0 | AE74: 0 | AF74: 0
A75: 3 | B75: 3-C | C75: NRV | D75: Radford City | E75: 0 | F75: 2 | G75: 18 | H75: 20 | I75: 0 | J75: 3 | K75: 2 | L75: 10 | M75: 0 | N75: 3 | O75: 2 | P75: 0 | Q75: 0 | R75: 0 | S75: 2 | T75: 0 | U75: 0 | V75: 0 | W75: 0 | X75: 0 | Y75: 0 | Z75: 0 | AA75: 0 | AB75: 1 | AC75: 0 | AD75: 0 | AE75: 0 | AF75: 2
A76: 3 | B76: 3-D | C76: CMT | D76: Buchanan County | E76: 0 | F76: 6 | G76: 26 | H76: 32 | I76: 1 | J76: 11 | K76: 0 | L76: 12 | M76: 1 | N76: 5 | O76: 0 | P76: 2 | Q76: 0 | R76: 0 | S76: 1 | T76: 0 | U76: 0 | V76: 0 | W76: 0 | X76: 1 | Y76: 0 | Z76: 0 | AA76: 0 | AB76: 0 | AC76: 0 | AD76: 0 | AE76: 0 | AF76: 1
A77: 3 | B77: 3-D | C77: CMT | D77: Russell County | E77: 0 | F77: 4 | G77: 62 | H77: 66 | I77: 4 | J77: 27 | K77: 2 | L77: 18 | M77: 2 | N77: 6 | O77: 6 | P77: 1 | Q77: 0 | R77: 0 | S77: 0 | T77: 0 | U77: 0 | V77: 0 | W77: 0 | X77: 0 | Y77: 0 | Z77: 0 | AA77: 0 | AB77: 0 | AC77: 0 | AD77: 0 | AE77: 0 | AF77: 0
A78: 3 | B78: 3-D | C78: CMT | D78: Tazewell County | E78: 3 | F78: 17 | G78: 57 | H78: 77 | I78: 7 | J78: 21 | K78: 3 | L78: 27 | M78: 3 | N78: 11 | O78: 1 | P78: 4 | Q78: 0 | R78: 0 | S78: 1 | T78: 0 | U78: 0 | V78: 0 | W78: 1 | X78: 1 | Y78: 0 | Z78: 0 | AA78: 0 | AB78: 0 | AC78: 1 | AD78: 0 | AE78: 0 | AF78: 2
A79: 3 | B79: 3-D | C79: DCBH | D79: Dickenson County | E79: 0 | F79: 5 | G79: 30 | H79: 35 | I79: 3 | J79: 9 | K79: 1 | L79: 16 | M79: 3 | N79: 2 | O79: 0 | P79: 1 | Q79: 0 | R79: 0 | S79: 1 | T79: 0 | U79: 0 | V79: 0 | W79: 0 | X79: 0 | Y79: 0 | Z79: 0 | AA79: 0 | AB79: 0 | AC79: 0 | AD79: 0 | AE79: 0 | AF79: 1
A80: 3 | B80: 3-D | C80: HIGH | D80: Bristol City | E80: 1 | F80: 3 | G80: 46 | H80: 50 | I80: 1 | J80: 14 | K80: 3 | L80: 18 | M80: 5 | N80: 8 | O80: 0 | P80: 1 | Q80: 0 | R80: 0 | S80: 0 | T80: 0 | U80: 0 | V80: 0 | W80: 0 | X80: 1 | Y80: 0 | Z80: 0 | AA80: 0 | AB80: 0 | AC80: 0 | AD80: 0 | AE80: 0 | AF80: 1
A81: 3 | B81: 3-D | C81: HIGH | D81: Washington County | E81: 3 | F81: 16 | G81: 74 | H81: 93 | I81: 6 | J81: 25 | K81: 3 | L81: 35 | M81: 2 | N81: 18 | O81: 1 | P81: 3 | Q81: 0 | R81: 0 | S81: 3 | T81: 0 | U81: 0 | V81: 0 | W81: 0 | X81: 0 | Y81: 0 | Z81: 0 | AA81: 0 | AB81: 0 | AC81: 2 | AD81: 1 | AE81: 1 | AF81: 5
A82: 3 | B82: 3-D | C82: MTRG | D82: Smyth County | E82: 0 | F82: 15 | G82: 70 | H82: 85 | I82: 1 | J82: 12 | K82: 3 | L82: 46 | M82: 6 | N82: 8 | O82: 3 | P82: 6 | Q82: 0 | R82: 0 | S82: 1 | T82: 0 | U82: 0 | V82: 0 | W82: 0 | X82: 0 | Y82: 0 | Z82: 0 | AA82: 0 | AB82: 0 | AC82: 0 | AD82: 1 | AE82: 1 | AF82: 1
A83: 3 | B83: 3-D | C83: PLD1 | D83: Lee County | E83: 1 | F83: 13 | G83: 26 | H83: 40 | I83: 5 | J83: 13 | K83: 1 | L83: 15 | M83: 0 | N83: 4 | O83: 0 | P83: 2 | Q83: 0 | R83: 0 | S83: 0 | T83: 0 | U83: 0 | V83: 0 | W83: 0 | X83: 0 | Y83: 0 | Z83: 0 | AA83: 0 | AB83: 0 | AC83: 0 | AD83: 0 | AE83: 0 | AF83: 0
A84: 3 | B84: 3-D | C84: PLD1 | D84: Norton City | E84: 0 | F84: 1 | G84: 3 | H84: 4 | I84: 1 | J84: 2 | K84: 0 | L84: 0 | M84: 0 | N84: 1 | O84: 0 | P84: 0 | Q84: 0 | R84: 0 | S84: 0 | T84: 0 | U84: 0 | V84: 0 | W84: 0 | X84: 0 | Y84: 0 | Z84: 0 | AA84: 0 | AB84: 0 | AC84: 0 | AD84: 0 | AE84: 0 | AF84: 0
A85: 3 | B85: 3-D | C85: PLD1 | D85: Scott County | E85: 1 | F85: 2 | G85: 56 | H85: 59 | I85: 1 | J85: 20 | K85: 3 | L85: 28 | M85: 3 | N85: 4 | O85: 0 | P85: 0 | Q85: 0 | R85: 0 | S85: 0 | T85: 0 | U85: 0 | V85: 0 | W85: 0 | X85: 0 | Y85: 0 | Z85: 0 | AA85: 0 | AB85: 0 | AC85: 0 | AD85: 0 | AE85: 0 | AF85: 0
A86: 3 | B86: 3-D | C86: PLD1 | D86: Wise County | E86: 0 | F86: 7 | G86: 97 | H86: 104 | I86: 3 | J86: 26 | K86: 1 | L86: 53 | M86: 1 | N86: 11 | O86: 2 | P86: 7 | Q86: 0 | R86: 0 | S86: 3 | T86: 0 | U86: 0 | V86: 0 | W86: 0 | X86: 1 | Y86: 0 | Z86: 0 | AA86: 0 | AB86: 0 | AC86: 1 | AD86: 0 | AE86: 1 | AF86: 4
A87: 4 | B87: 4-A | C87: CHST | D87: Chesterfield County | E87: 26 | F87: 130 | G87: 975 | H87: 1131 | I87: 77 | J87: 380 | K87: 49 | L87: 389 | M87: 33 | N87: 77 | O87: 86 | P87: 40 | Q87: 0 | R87: 3 | S87: 9 | T87: 0 | U87: 0 | V87: 0 | W87: 1 | X87: 3 | Y87: 0 | Z87: 0 | AA87: 3 | AB87: 0 | AC87: 4 | AD87: 2 | AE87: 5 | AF87: 20
A88: 4 | B88: 4-A | C88: D19 | D88: Colonial Heights City | E88: 1 | F88: 5 | G88: 21 | H88: 27 | I88: 4 | J88: 8 | K88: 2 | L88: 5 | M88: 1 | N88: 3 | O88: 0 | P88: 4 | Q88: 0 | R88: 0 | S88: 2 | T88: 0 | U88: 0 | V88: 0 | W88: 0 | X88: 0 | Y88: 0 | Z88: 0 | AA88: 0 | AB88: 0 | AC88: 0 | AD88: 0 | AE88: 2 | AF88: 3
A89: 4 | B89: 4-A | C89: HANO | D89: Hanover County | E89: 14 | F89: 64 | G89: 161 | H89: 239 | I89: 23 | J89: 59 | K89: 6 | L89: 84 | M89: 11 | N89: 25 | O89: 15 | P89: 16 | Q89: 0 | R89: 1 | S89: 4 | T89: 0 | U89: 0 | V89: 0 | W89: 0 | X89: 1 | Y89: 0 | Z89: 0 | AA89: 1 | AB89: 0 | AC89: 1 | AD89: 0 | AE89: 1 | AF89: 7
A90: 4 | B90: 4-A | C90: HENR | D90: Charles City County | E90: 0 | F90: 5 | G90: 5 | H90: 10 | I90: 0 | J90: 6 | K90: 0 | L90: 2 | M90: 0 | N90: 0 | O90: 0 | P90: 2 | Q90: 0 | R90: 0 | S90: 0 | T90: 0 | U90: 0 | V90: 0 | W90: 0 | X90: 0 | Y90: 0 | Z90: 0 | AA90: 0 | AB90: 0 | AC90: 0 | AD90: 0 | AE90: 0 | AF90: 0
A91: 4 | B91: 4-A | C91: HENR | D91: Henrico County | E91: 20 | F91: 142 | G91: 515 | H91: 677 | I91: 51 | J91: 256 | K91: 24 | L91: 240 | M91: 13 | N91: 29 | O91: 47 | P91: 17 | Q91: 3 | R91: 3 | S91: 9 | T91: 0 | U91: 0 | V91: 0 | W91: 2 | X91: 5 | Y91: 0 | Z91: 1 | AA91: 2 | AB91: 0 | AC91: 2 | AD91: 1 | AE91: 5 | AF91: 18
A92: 4 | B92: 4-A | C92: HENR | D92: New Kent County | E92: 0 | F92: 2 | G92: 20 | H92: 22 | I92: 0 | J92: 5 | K92: 1 | L92: 11 | M92: 1 | N92: 4 | O92: 0 | P92: 0 | Q92: 0 | R92: 0 | S92: 0 | T92: 0 | U92: 0 | V92: 0 | W92: 0 | X92: 0 | Y92: 0 | Z92: 0 | AA92: 1 | AB92: 0 | AC92: 0 | AD92: 0 | AE92: 1 | AF92: 2
A93: 4 | B93: 4-A | C93: RBHA | D93: Richmond City | E93: 9 | F93: 54 | G93: 243 | H93: 306 | I93: 20 | J93: 81 | K93: 10 | L93: 136 | M93: 9 | N93: 27 | O93: 11 | P93: 12 | Q93: 0 | R93: 2 | S93: 2 | T93: 0 | U93: 0 | V93: 0 | W93: 0 | X93: 1 | Y93: 0 | Z93: 0 | AA93: 0 | AB93: 0 | AC93: 3 | AD93: 1 | AE93: 1 | AF93: 7
A94: 4 | B94: 4-B | C94: CROS | D94: Amelia County | E94: 0 | F94: 2 | G94: 11 | H94: 13 | I94: 0 | J94: 5 | K94: 0 | L94: 6 | M94: 0 | N94: 1 | O94: 0 | P94: 1 | Q94: 0 | R94: 0 | S94: 0 | T94: 0 | U94: 0 | V94: 0 | W94: 0 | X94: 0 | Y94: 0 | Z94: 0 | AA94: 0 | AB94: 0 | AC94: 0 | AD94: 0 | AE94: 0 | AF94: 0
A95: 4 | B95: 4-B | C95: CROS | D95: Buckingham County | E95: 1 | F95: 1 | G95: 15 | H95: 17 | I95: 0 | J95: 6 | K95: 1 | L95: 6 | M95: 1 | N95: 2 | O95: 0 | P95: 1 | Q95: 0 | R95: 0 | S95: 0 | T95: 0 | U95: 0 | V95: 0 | W95: 0 | X95: 0 | Y95: 0 | Z95: 0 | AA95: 0 | AB95: 0 | AC95: 0 | AD95: 0 | AE95: 0 | AF95: 0
A96: 4 | B96: 4-B | C96: CROS | D96: Cumberland County | E96: 1 | F96: 2 | G96: 26 | H96: 29 | I96: 1 | J96: 8 | K96: 0 | L96: 16 | M96: 2 | N96: 1 | O96: 0 | P96: 1 | Q96: 0 | R96: 0 | S96: 1 | T96: 0 | U96: 0 | V96: 0 | W96: 0 | X96: 0 | Y96: 0 | Z96: 0 | AA96: 0 | AB96: 0 | AC96: 0 | AD96: 0 | AE96: 0 | AF96: 1
A97: 4 | B97: 4-B | C97: GOOC | D97: Goochland County | E97: 1 | F97: 7 | G97: 20 | H97: 28 | I97: 0 | J97: 8 | K97: 1 | L97: 8 | M97: 1 | N97: 5 | O97: 2 | P97: 3 | Q97: 0 | R97: 0 | S97: 1 | T97: 0 | U97: 0 | V97: 0 | W97: 0 | X97: 1 | Y97: 0 | Z97: 0 | AA97: 0 | AB97: 0 | AC97: 0 | AD97: 0 | AE97: 1 | AF97: 2
A98: 4 | B98: 4-B | C98: GOOC | D98: Powhatan County | E98: 1 | F98: 17 | G98: 24 | H98: 42 | I98: 1 | J98: 13 | K98: 0 | L98: 16 | M98: 1 | N98: 6 | O98: 1 | P98: 4 | Q98: 0 | R98: 0 | S98: 2 | T98: 0 | U98: 0 | V98: 0 | W98: 0 | X98: 1 | Y98: 0 | Z98: 0 | AA98: 0 | AB98: 0 | AC98: 0 | AD98: 0 | AE98: 1 | AF98: 3
A99: 4 | B99: 4-C | C99: CROS | D99: Charlotte County | E99: 0 | F99: 8 | G99: 23 | H99: 31 | I99: 3 | J99: 10 | K99: 2 | L99: 9 | M99: 0 | N99: 1 | O99: 4 | P99: 2 | Q99: 0 | R99: 0 | S99: 2 | T99: 0 | U99: 0 | V99: 0 | W99: 0 | X99: 0 | Y99: 0 | Z99: 0 | AA99: 0 | AB99: 0 | AC99: 0 | AD99: 0 | AE99: 0 | AF99: 2
A100: 4 | B100: 4-C | C100: CROS | D100: Lunenburg County | E100: 1 | F100: 4 | G100: 8 | H100: 13 | I100: 0 | J100: 3 | K100: 0 | L100: 7 | M100: 0 | N100: 1 | O100: 1 | P100: 1 | Q100: 0 | R100: 0 | S100: 0 | T100: 0 | U100: 0 | V100: 0 | W100: 0 | X100: 0 | Y100: 0 | Z100: 0 | AA100: 0 | AB100: 0 | AC100: 0 | AD100: 0 | AE100: 0 | AF100: 0
A101: 4 | B101: 4-C | C101: CROS | D101: Nottoway County | E101: 0 | F101: 5 | G101: 12 | H101: 17 | I101: 1 | J101: 4 | K101: 1 | L101: 10 | M101: 0 | N101: 0 | O101: 1 | P101: 0 | Q101: 0 | R101: 0 | S101: 0 | T101: 0 | U101: 0 | V101: 0 | W101: 0 | X101: 0 | Y101: 0 | Z101: 0 | AA101: 0 | AB101: 0 | AC101: 0 | AD101: 0 | AE101: 0 | AF101: 0
A102: 4 | B102: 4-C | C102: CROS | D102: Prince Edward County | E102: 0 | F102: 7 | G102: 72 | H102: 79 | I102: 5 | J102: 35 | K102: 5 | L102: 30 | M102: 2 | N102: 0 | O102: 0 | P102: 2 | Q102: 0 | R102: 0 | S102: 2 | T102: 0 | U102: 0 | V102: 0 | W102: 0 | X102: 2 | Y102: 0 | Z102: 0 | AA102: 0 | AB102: 0 | AC102: 0 | AD102: 0 | AE102: 0 | AF102: 3
A103: 4 | B103: 4-C | C103: D19 | D103: Emporia City | E103: 0 | F103: 4 | G103: 2 | H103: 6 | I103: 0 | J103: 2 | K103: 0 | L103: 2 | M103: 0 | N103: 1 | O103: 0 | P103: 1 | Q103: 0 | R103: 0 | S103: 0 | T103: 0 | U103: 0 | V103: 0 | W103: 0 | X103: 0 | Y103: 0 | Z103: 0 | AA103: 0 | AB103: 0 | AC103: 1 | AD103: 0 | AE103: 0 | AF103: 1
A104: 4 | B104: 4-D | C104: D19 | D104: Dinwiddie County | E104: 0 | F104: 5 | G104: 74 | H104: 79 | I104: 1 | J104: 15 | K104: 4 | L104: 38 | M104: 2 | N104: 5 | O104: 8 | P104: 6 | Q104: 0 | R104: 0 | S104: 0 | T104: 0 | U104: 0 | V104: 0 | W104: 0 | X104: 0 | Y104: 0 | Z104: 0 | AA104: 0 | AB104: 0 | AC104: 0 | AD104: 0 | AE104: 1 | AF104: 1
A105: 4 | B105: 4-D | C105: D19 | D105: Greensville County | E105: 0 | F105: 1 | G105: 10 | H105: 11 | I105: 0 | J105: 2 | K105: 0 | L105: 5 | M105: 1 | N105: 1 | O105: 0 | P105: 2 | Q105: 0 | R105: 0 | S105: 0 | T105: 0 | U105: 0 | V105: 0 | W105: 0 | X105: 0 | Y105: 0 | Z105: 0 | AA105: 0 | AB105: 0 | AC105: 0 | AD105: 0 | AE105: 0 | AF105: 0
A106: 4 | B106: 4-D | C106: D19 | D106: Hopewell City | E106: 0 | F106: 7 | G106: 33 | H106: 40 | I106: 0 | J106: 9 | K106: 6 | L106: 15 | M106: 2 | N106: 0 | O106: 6 | P106: 2 | Q106: 0 | R106: 0 | S106: 1 | T106: 0 | U106: 0 | V106: 0 | W106: 0 | X106: 0 | Y106: 0 | Z106: 0 | AA106: 0 | AB106: 0 | AC106: 0 | AD106: 0 | AE106: 1 | AF106: 2
A107: 4 | B107: 4-D | C107: D19 | D107: Petersburg City | E107: 2 | F107: 12 | G107: 127 | H107: 141 | I107: 7 | J107: 37 | K107: 2 | L107: 54 | M107: 12 | N107: 10 | O107: 12 | P107: 7 | Q107: 0 | R107: 1 | S107: 3 | T107: 0 | U107: 0 | V107: 0 | W107: 0 | X107: 0 | Y107: 0 | Z107: 0 | AA107: 0 | AB107: 0 | AC107: 0 | AD107: 0 | AE107: 3 | AF107: 7
A108: 4 | B108: 4-D | C108: D19 | D108: Prince George County | E108: 0 | F108: 6 | G108: 65 | H108: 71 | I108: 3 | J108: 19 | K108: 5 | L108: 29 | M108: 3 | N108: 3 | O108: 9 | P108: 0 | Q108: 0 | R108: 0 | S108: 3 | T108: 0 | U108: 0 | V108: 0 | W108: 0 | X108: 1 | Y108: 0 | Z108: 0 | AA108: 0 | AB108: 1 | AC108: 1 | AD108: 1 | AE108: 3 | AF108: 8
A109: 4 | B109: 4-D | C109: D19 | D109: Surry County | E109: 0 | F109: 0 | G109: 3 | H109: 3 | I109: 0 | J109: 0 | K109: 0 | L109: 2 | M109: 0 | N109: 1 | O109: 0 | P109: 0 | Q109: 0 | R109: 0 | S109: 0 | T109: 0 | U109: 0 | V109: 0 | W109: 0 | X109: 0 | Y109: 0 | Z109: 0 | AA109: 0 | AB109: 0 | AC109: 0 | AD109: 0 | AE109: 0 | AF109: 0
A110: 4 | B110: 4-D | C110: D19 | D110: Sussex County | E110: 0 | F110: 1 | G110: 36 | H110: 37 | I110: 1 | J110: 8 | K110: 2 | L110: 22 | M110: 2 | N110: 2 | O110: 0 | P110: 0 | Q110: 0 | R110: 0 | S110: 0 | T110: 0 | U110: 0 | V110: 0 | W110: 0 | X110: 0 | Y110: 0 | Z110: 0 | AA110: 0 | AB110: 0 | AC110: 0 | AD110: 0 | AE110: 0 | AF110: 0
A111: 5 | B111: 5-A | C111: MPNN | D111: Essex County | E111: 0 | F111: 4 | G111: 17 | H111: 21 | I111: 3 | J111: 8 | K111: 0 | L111: 8 | M111: 0 | N111: 1 | O111: 0 | P111: 1 | Q111: 0 | R111: 0 | S111: 0 | T111: 0 | U111: 0 | V111: 0 | W111: 0 | X111: 0 | Y111: 0 | Z111: 0 | AA111: 0 | AB111: 0 | AC111: 0 | AD111: 0 | AE111: 0 | AF111: 0
A112: 5 | B112: 5-A | C112: MPNN | D112: Gloucester County | E112: 0 | F112: 15 | G112: 78 | H112: 93 | I112: 8 | J112: 24 | K112: 1 | L112: 30 | M112: 9 | N112: 18 | O112: 2 | P112: 1 | Q112: 0 | R112: 0 | S112: 0 | T112: 0 | U112: 0 | V112: 0 | W112: 0 | X112: 1 | Y112: 0 | Z112: 0 | AA112: 0 | AB112: 0 | AC112: 2 | AD112: 1 | AE112: 0 | AF112: 3
A113: 5 | B113: 5-A | C113: MPNN | D113: King and Queen County | E113: 1 | F113: 0 | G113: 7 | H113: 8 | I113: 0 | J113: 2 | K113: 1 | L113: 2 | M113: 1 | N113: 2 | O113: 0 | P113: 0 | Q113: 0 | R113: 0 | S113: 0 | T113: 0 | U113: 0 | V113: 0 | W113: 0 | X113: 0 | Y113: 0 | Z113: 0 | AA113: 0 | AB113: 0 | AC113: 0 | AD113: 0 | AE113: 0 | AF113: 0
A114: 5 | B114: 5-A | C114: MPNN | D114: King William County | E114: 0 | F114: 5 | G114: 25 | H114: 30 | I114: 0 | J114: 7 | K114: 0 | L114: 8 | M114: 3 | N114: 10 | O114: 2 | P114: 0 | Q114: 0 | R114: 0 | S114: 0 | T114: 0 | U114: 0 | V114: 0 | W114: 0 | X114: 0 | Y114: 0 | Z114: 0 | AA114: 0 | AB114: 0 | AC114: 0 | AD114: 0 | AE114: 0 | AF114: 0
A115: 5 | B115: 5-A | C115: MPNN | D115: Lancaster County | E115: 0 | F115: 0 | G115: 7 | H115: 7 | I115: 3 | J115: 3 | K115: 0 | L115: 1 | M115: 0 | N115: 0 | O115: 0 | P115: 0 | Q115: 0 | R115: 0 | S115: 0 | T115: 0 | U115: 0 | V115: 0 | W115: 0 | X115: 0 | Y115: 0 | Z115: 0 | AA115: 0 | AB115: 0 | AC115: 0 | AD115: 0 | AE115: 0 | AF115: 0
A116: 5 | B116: 5-A | C116: MPNN | D116: Mathews County | E116: 0 | F116: 2 | G116: 38 | H116: 40 | I116: 2 | J116: 15 | K116: 3 | L116: 17 | M116: 1 | N116: 1 | O116: 0 | P116: 1 | Q116: 0 | R116: 0 | S116: 0 | T116: 0 | U116: 0 | V116: 0 | W116: 0 | X116: 0 | Y116: 0 | Z116: 0 | AA116: 0 | AB116: 0 | AC116: 0 | AD116: 0 | AE116: 0 | AF116: 0
A117: 5 | B117: 5-A | C117: MPNN | D117: Middlesex County | E117: 0 | F117: 4 | G117: 23 | H117: 27 | I117: 2 | J117: 9 | K117: 0 | L117: 14 | M117: 1 | N117: 1 | O117: 0 | P117: 0 | Q117: 0 | R117: 0 | S117: 0 | T117: 0 | U117: 0 | V117: 0 | W117: 0 | X117: 0 | Y117: 0 | Z117: 0 | AA117: 0 | AB117: 0 | AC117: 0 | AD117: 0 | AE117: 0 | AF117: 0
A118: 5 | B118: 5-A | C118: MPNN | D118: Northumberland County | E118: 0 | F118: 0 | G118: 9 | H118: 9 | I118: 1 | J118: 4 | K118: 0 | L118: 3 | M118: 0 | N118: 1 | O118: 0 | P118: 0 | Q118: 0 | R118: 0 | S118: 0 | T118: 0 | U118: 0 | V118: 0 | W118: 0 | X118: 0 | Y118: 0 | Z118: 0 | AA118: 0 | AB118: 0 | AC118: 0 | AD118: 0 | AE118: 0 | AF118: 0
A119: 5 | B119: 5-A | C119: MPNN | D119: Richmond County | E119: 0 | F119: 17 | G119: 48 | H119: 65 | I119: 10 | J119: 20 | K119: 5 | L119: 15 | M119: 1 | N119: 9 | O119: 4 | P119: 1 | Q119: 0 | R119: 0 | S119: 0 | T119: 0 | U119: 0 | V119: 0 | W119: 0 | X119: 0 | Y119: 0 | Z119: 0 | AA119: 0 | AB119: 0 | AC119: 0 | AD119: 0 | AE119: 0 | AF119: 0
A120: 5 | B120: 5-A | C120: MPNN | D120: Westmoreland County | E120: 0 | F120: 4 | G120: 12 | H120: 16 | I120: 1 | J120: 9 | K120: 0 | L120: 4 | M120: 1 | N120: 1 | O120: 0 | P120: 0 | Q120: 0 | R120: 0 | S120: 0 | T120: 0 | U120: 0 | V120: 0 | W120: 0 | X120: 0 | Y120: 0 | Z120: 0 | AA120: 0 | AB120: 0 | AC120: 0 | AD120: 0 | AE120: 0 | AF120: 0
A121: 5 | B121: 5-B | C121: EAST | D121: Accomack County | E121: 0 | F121: 7 | G121: 62 | H121: 69 | I121: 5 | J121: 24 | K121: 1 | L121: 30 | M121: 0 | N121: 6 | O121: 0 | P121: 3 | Q121: 0 | R121: 0 | S121: 1 | T121: 0 | U121: 0 | V121: 0 | W121: 0 | X121: 1 | Y121: 0 | Z121: 0 | AA121: 1 | AB121: 0 | AC121: 0 | AD121: 0 | AE121: 0 | AF121: 1
A122: 5 | B122: 5-B | C122: EAST | D122: Northampton County | E122: 0 | F122: 5 | G122: 46 | H122: 51 | I122: 6 | J122: 23 | K122: 0 | L122: 14 | M122: 2 | N122: 1 | O122: 3 | P122: 2 | Q122: 0 | R122: 0 | S122: 0 | T122: 0 | U122: 0 | V122: 0 | W122: 0 | X122: 0 | Y122: 0 | Z122: 0 | AA122: 0 | AB122: 0 | AC122: 0 | AD122: 0 | AE122: 0 | AF122: 0
A123: 5 | B123: 5-C | C123: COLO | D123: James City County | E123: 1 | F123: 31 | G123: 35 | H123: 67 | I123: 2 | J123: 12 | K123: 4 | L123: 29 | M123: 6 | N123: 3 | O123: 4 | P123: 7 | Q123: 0 | R123: 0 | S123: 0 | T123: 0 | U123: 0 | V123: 0 | W123: 1 | X123: 1 | Y123: 0 | Z123: 0 | AA123: 0 | AB123: 0 | AC123: 0 | AD123: 0 | AE123: 1 | AF123: 2
A124: 5 | B124: 5-C | C124: COLO | D124: Poquoson City | E124: 0 | F124: 3 | G124: 2 | H124: 5 | I124: 0 | J124: 1 | K124: 0 | L124: 2 | M124: 0 | N124: 0 | O124: 2 | P124: 0 | Q124: 0 | R124: 0 | S124: 0 | T124: 0 | U124: 0 | V124: 0 | W124: 0 | X124: 0 | Y124: 0 | Z124: 0 | AA124: 0 | AB124: 0 | AC124: 0 | AD124: 0 | AE124: 0 | AF124: 0
A125: 5 | B125: 5-C | C125: COLO | D125: Williamsburg City | E125: 0 | F125: 4 | G125: 17 | H125: 21 | I125: 0 | J125: 9 | K125: 0 | L125: 5 | M125: 0 | N125: 2 | O125: 2 | P125: 3 | Q125: 0 | R125: 0 | S125: 2 | T125: 0 | U125: 0 | V125: 0 | W125: 0 | X125: 2 | Y125: 0 | Z125: 0 | AA125: 0 | AB125: 0 | AC125: 0 | AD125: 0 | AE125: 1 | AF125: 2
A126: 5 | B126: 5-C | C126: COLO | D126: York County | E126: 0 | F126: 20 | G126: 41 | H126: 61 | I126: 1 | J126: 14 | K126: 3 | L126: 25 | M126: 2 | N126: 7 | O126: 7 | P126: 2 | Q126: 0 | R126: 0 | S126: 0 | T126: 0 | U126: 0 | V126: 0 | W126: 0 | X126: 0 | Y126: 0 | Z126: 0 | AA126: 0 | AB126: 0 | AC126: 1 | AD126: 0 | AE126: 0 | AF126: 1
A127: 5 | B127: 5-C | C127: HAMP | D127: Hampton City | E127: 10 | F127: 54 | G127: 246 | H127: 310 | I127: 7 | J127: 69 | K127: 9 | L127: 141 | M127: 25 | N127: 30 | O127: 24 | P127: 5 | Q127: 0 | R127: 2 | S127: 7 | T127: 0 | U127: 0 | V127: 0 | W127: 0 | X127: 3 | Y127: 0 | Z127: 0 | AA127: 0 | AB127: 0 | AC127: 0 | AD127: 1 | AE127: 5 | AF127: 11
A128: 5 | B128: 5-C | C128: HAMP | D128: Newport News City | E128: 12 | F128: 44 | G128: 220 | H128: 276 | I128: 7 | J128: 59 | K128: 7 | L128: 139 | M128: 15 | N128: 26 | O128: 19 | P128: 4 | Q128: 0 | R128: 2 | S128: 4 | T128: 0 | U128: 0 | V128: 0 | W128: 1 | X128: 7 | Y128: 0 | Z128: 0 | AA128: 0 | AB128: 0 | AC128: 5 | AD128: 2 | AE128: 7 | AF128: 20
A129: 5 | B129: 5-D | C129: CHSP | D129: Chesapeake City | E129: 7 | F129: 109 | G129: 294 | H129: 410 | I129: 19 | J129: 106 | K129: 7 | L129: 188 | M129: 15 | N129: 37 | O129: 23 | P129: 15 | Q129: 0 | R129: 4 | S129: 7 | T129: 0 | U129: 0 | V129: 0 | W129: 1 | X129: 6 | Y129: 0 | Z129: 0 | AA129: 0 | AB129: 0 | AC129: 5 | AD129: 3 | AE129: 7 | AF129: 20
A130: 5 | B130: 5-D | C130: NORF | D130: Norfolk City | E130: 26 | F130: 105 | G130: 300 | H130: 431 | I130: 19 | J130: 134 | K130: 14 | L130: 195 | M130: 24 | N130: 26 | O130: 13 | P130: 6 | Q130: 0 | R130: 1 | S130: 4 | T130: 0 | U130: 0 | V130: 0 | W130: 1 | X130: 4 | Y130: 0 | Z130: 0 | AA130: 0 | AB130: 0 | AC130: 1 | AD130: 0 | AE130: 2 | AF130: 9
A131: 5 | B131: 5-D | C131: PORT | D131: Portsmouth City | E131: 2 | F131: 12 | G131: 265 | H131: 279 | I131: 9 | J131: 79 | K131: 16 | L131: 138 | M131: 10 | N131: 14 | O131: 12 | P131: 1 | Q131: 0 | R131: 1 | S131: 9 | T131: 0 | U131: 0 | V131: 0 | W131: 2 | X131: 4 | Y131: 0 | Z131: 0 | AA131: 1 | AB131: 0 | AC131: 0 | AD131: 1 | AE131: 3 | AF131: 16
A132: 5 | B132: 5-D | C132: VAB | D132: Virginia Beach City | E132: 25 | F132: 179 | G132: 653 | H132: =SUM(E132:G132) -> 857 | I132: 52 | J132: 256 | K132: 17 | L132: 392 | M132: 28 | N132: 66 | O132: 29 | P132: 17 | Q132: 1 | R132: 3 | S132: 5 | T132: 0 | U132: 0 | V132: 0 | W132: 5 | X132: 18 | Y132: 0 | Z132: 1 | AA132: 1 | AB132: 0 | AC132: 6 | AD132: 5 | AE132: 6 | AF132: 27
A133: 5 | B133: 5-D | C133: WT | D133: Franklin City | E133: 0 | F133: 3 | G133: 26 | H133: 29 | I133: 0 | J133: 4 | K133: 0 | L133: 20 | M133: 3 | N133: 1 | O133: 0 | P133: 1 | Q133: 0 | R133: 0 | S133: 2 | T133: 0 | U133: 0 | V133: 0 | W133: 0 | X133: 1 | Y133: 0 | Z133: 0 | AA133: 0 | AB133: 0 | AC133: 1 | AD133: 1 | AE133: 1 | AF133: 3
A134: 5 | B134: 5-D | C134: WT | D134: Isle of Wight County | E134: 1 | F134: 8 | G134: 18 | H134: 27 | I134: 1 | J134: 11 | K134: 1 | L134: 8 | M134: 1 | N134: 1 | O134: 0 | P134: 4 | Q134: 0 | R134: 1 | S134: 2 | T134: 0 | U134: 0 | V134: 0 | W134: 0 | X134: 0 | Y134: 0 | Z134: 0 | AA134: 0 | AB134: 0 | AC134: 0 | AD134: 0 | AE134: 0 | AF134: 2
A135: 5 | B135: 5-D | C135: WT | D135: Southampton County | E135: 0 | F135: 1 | G135: 19 | H135: 20 | I135: 0 | J135: 2 | K135: 0 | L135: 11 | M135: 4 | N135: 1 | O135: 0 | P135: 2 | Q135: 0 | R135: 0 | S135: 0 | T135: 0 | U135: 0 | V135: 0 | W135: 0 | X135: 0 | Y135: 0 | Z135: 0 | AA135: 0 | AB135: 0 | AC135: 0 | AD135: 0 | AE135: 1 | AF135: 1
A136: 5 | B136: 5-D | C136: WT | D136: Suffolk City | E136: 2 | F136: 29 | G136: 158 | H136: 189 | I136: 7 | J136: 41 | K136: 5 | L136: 85 | M136: 14 | N136: 19 | O136: 17 | P136: 1 | Q136: 0 | R136: 4 | S136: 3 | T136: 0 | U136: 0 | V136: 0 | W136: 0 | X136: 3 | Y136: 0 | Z136: 0 | AA136: 0 | AB136: 0 | AC136: 1 | AD136: 1 | AE136: 2 | AF136: 8
A138: Regional Totals - non-Distinct
A139: 1 | E139: na | F139: na | G139: na | H139: na | I139: na | J139: na | K139: na | L139: na | M139: na | N139: na | O139: na | P139: na | Q139: 0 | R139: 14 | S139: 43 | T139: 1 | U139: 2 | V139: 0 | W139: 3 | X139: 23 | Y139: 0 | Z139: 0 | AA139: 4 | AB139: 0 | AC139: 6 | AD139: 12 | AE139: 30 | AF139: =SUMIF($A$4:$A$136,$A139,AF$4:AF$136) -> 77
A140: 2 | E140: na | F140: na | G140: na | H140: na | I140: na | J140: na | K140: na | L140: na | M140: na | N140: na | O140: na | P140: na | Q140: 1 | R140: 7 | S140: 13 | T140: 2 | U140: 0 | V140: 0 | W140: 1 | X140: 24 | Y140: 0 | Z140: 0 | AA140: 4 | AB140: 2 | AC140: 46 | AD140: 13 | AE140: 4 | AF140: =SUMIF($A$4:$A$136,$A140,AF$4:AF$136) -> 81
A141: 3 | E141: na | F141: na | G141: na | H141: na | I141: na | J141: na | K141: na | L141: na | M141: na | N141: na | O141: na | P141: na | Q141: 0 | R141: 17 | S141: 46 | T141: 1 | U141: 0 | V141: 0 | W141: 5 | X141: 26 | Y141: 0 | Z141: 0 | AA141: 2 | AB141: 3 | AC141: 11 | AD141: 16 | AE141: 24 | AF141: 75
A142: 4 | E142: na | F142: na | G142: na | H142: na | I142: na | J142: na | K142: na | L142: na | M142: na | N142: na | O142: na | P142: na | Q142: 3 | R142: 10 | S142: 41 | T142: 0 | U142: 0 | V142: 0 | W142: 3 | X142: 15 | Y142: 0 | Z142: 1 | AA142: 7 | AB142: 1 | AC142: 12 | AD142: 5 | AE142: 25 | AF142: 87
A143: 5 | E143: na | F143: na | G143: na | H143: na | I143: na | J143: na | K143: na | L143: na | M143: na | N143: na | O143: na | P143: na | Q143: 1 | R143: 18 | S143: 46 | T143: 0 | U143: 0 | V143: 0 | W143: 11 | X143: 51 | Y143: 0 | Z143: 1 | AA143: 3 | AB143: 0 | AC143: 22 | AD143: 15 | AE143: 36 | AF143: 126
A144: Regional Totals - Distinct
A145: 1 | E145: =SUMIF($A$4:$A$136,$A145,E$4:E$136) -> 42 | F145: 686 | G145: 2498 | H145: =SUM(E145:G145) -> 3226 | I145: 250 | J145: 961 | K145: 118 | L145: 1098 | M145: 114 | N145: 336 | O145: 210 | P145: 139 | Q145: 0 | R145: 10 | S145: 30 | T145: 1 | U145: 2 | V145: 0 | W145: 3 | X145: 17 | Y145: 0 | Z145: 0 | AA145: 4 | AB145: 0 | AC145: 5 | AD145: 6 | AE145: 18 | AF145: 51
A146: 2 | E146: 54 | F146: 758 | G146: 1665 | H146: =SUM(E146:G146) -> 2477 | I146: 128 | J146: 689 | K146: 112 | L146: 884 | M146: 70 | N146: 233 | O146: 178 | P146: 183 | Q146: 1 | R146: 7 | S146: 13 | T146: 2 | U146: 0 | V146: 0 | W146: 1 | X146: 22 | Y146: 0 | Z146: 0 | AA146: 4 | AB146: 2 | AC146: 43 | AD146: 13 | AE146: 4 | AF146: 77
A147: 3 | E147: 69 | F147: 421 | G147: 2182 | H147: 2672 | I147: 141 | J147: 683 | K147: 98 | L147: 1044 | M147: 135 | N147: 291 | O147: 192 | P147: 88 | Q147: 0 | R147: 12 | S147: 29 | T147: 1 | U147: 0 | V147: 0 | W147: 5 | X147: 20 | Y147: 0 | Z147: 0 | AA147: 2 | AB147: 1 | AC147: 5 | AD147: 7 | AE147: 12 | AF147: 41
A148: 4 | E148: 77 | F148: 491 | G148: 2501 | H148: 3069 | I148: 198 | J148: 979 | K148: 121 | L148: 1142 | M148: 97 | N148: 205 | O148: 203 | P148: 124 | Q148: 3 | R148: 9 | S148: 35 | T148: 0 | U148: 0 | V148: 0 | W148: 3 | X148: 14 | Y148: 0 | Z148: 1 | AA148: 6 | AB148: 1 | AC148: 12 | AD148: 5 | AE148: 15 | AF148: 70
A149: 5 | E149: =SUMIF($A$4:$A$136,$A149,E$4:E$136) -> 87 | F149: 665 | G149: 2666 | H149: 3418 | I149: 165 | J149: 945 | K149: 94 | L149: 1524 | M149: 166 | N149: 284 | O149: 163 | P149: 77 | Q149: 1 | R149: 17 | S149: 36 | T149: 0 | U149: 0 | V149: 0 | W149: 11 | X149: 50 | Y149: 0 | Z149: 1 | AA149: 3 | AB149: 0 | AC149: 20 | AD149: 14 | AE149: 34 | AF149: 112
A150: Total Distinct | E150: =SUM(E145:E149) -> 329 | F150: =SUM(F145:F149) -> 3021 | G150: 11512 | H150: 14862 | I150: =SUM(I145:I149) -> 882 | J150: 4257 | K150: 543 | L150: 5692 | M150: 582 | N150: 1349 | O150: 946 | P150: 611 | Q150: 5 | R150: 53 | S150: 137 | T150: 4 | U150: 2 | V150: 0 | W150: 23 | X150: 117 | Y150: 0 | Z150: 2 | AA150: 18 | AB150: 4 | AC150: 78 | AD150: 43 | AE150: 74 | AF150: 330
A151: SubRegional Totals - Distinct
A152: 1 | B152: 1-A | E152: =SUMIF($B$4:$B$136,$B152,E$4:E$136) -> 12 | F152: =SUMIF($B$4:$B$136,$B152,F$4:F$136) -> 213 | G152: 691 | H152: 916 | I152: =SUMIF($B$4:$B$136,$B152,I$4:I$136) -> 94 | J152: =SUMIF($B$4:$B$136,$B152,J$4:J$136) -> 297 | K152: 35 | L152: 285 | M152: 34 | N152: 82 | O152: 50 | P152: 39 | Q152: 0 | R152: 2 | S152: 9 | T152: 0 | U152: 2 | V152: 0 | W152: 0 | X152: 2 | Y152: 0 | Z152: 0 | AA152: 1 | AB152: 0 | AC152: 4 | AD152: 1 | AE152: 2 | AF152: 17
A153: 1 | B153: 1-B | E153: =SUMIF($B$4:$B$136,$B153,E$4:E$136) -> 4 | F153: 69 | G153: 381 | H153: 454 | I153: =SUMIF($B$4:$B$136,$B153,I$4:I$136) -> 24 | J153: 113 | K153: 21 | L153: 155 | M153: 19 | N153: 47 | O153: 44 | P153: 31 | Q153: 0 | R153: 1 | S153: 4 | T153: 0 | U153: 0 | V153: 0 | W153: 0 | X153: 5 | Y153: 0 | Z153: 0 | AA153: 0 | AB153: 0 | AC153: 0 | AD153: 2 | AE153: 4 | AF153: 7
A154: 1 | B154: 1-C | E154: 12 | F154: 166 | G154: 490 | H154: 668 | I154: 60 | J154: 246 | K154: 32 | L154: 225 | M154: 12 | N154: 50 | O154: 23 | P154: 20 | Q154: 0 | R154: 6 | S154: 12 | T154: 1 | U154: 0 | V154: 0 | W154: 1 | X154: 6 | Y154: 0 | Z154: 0 | AA154: 3 | AB154: 0 | AC154: 0 | AD154: 3 | AE154: 3 | AF154: 17
A155: 1 | B155: 1-D | E155: 14 | F155: 238 | G155: 936 | H155: 1188 | I155: 72 | J155: 305 | K155: 30 | L155: 433 | M155: 49 | N155: 157 | O155: 93 | P155: 49 | Q155: 0 | R155: 4 | S155: 8 | T155: 0 | U155: 0 | V155: 0 | W155: 2 | X155: 6 | Y155: 0 | Z155: 0 | AA155: 0 | AB155: 0 | AC155: 1 | AD155: 1 | AE155: 13 | AF155: 16
A156: 2 | B156: 2-A | E156: 8 | F156: 84 | G156: 183 | H156: 275 | I156: 22 | J156: 94 | K156: 12 | L156: 94 | M156: 6 | N156: 14 | O156: 12 | P156: 21 | Q156: 0 | R156: 0 | S156: 1 | T156: 0 | U156: 0 | V156: 0 | W156: 0 | X156: 2 | Y156: 0 | Z156: 0 | AA156: 1 | AB156: 0 | AC156: 2 | AD156: 0 | AE156: 0 | AF156: 4
A157: 2 | B157: 2-B | E157: 23 | F157: 421 | G157: 900 | H157: 1344 | I157: 77 | J157: 348 | K157: 56 | L157: 493 | M157: 38 | N157: 121 | O157: 115 | P157: 96 | Q157: 0 | R157: 6 | S157: 7 | T157: 1 | U157: 0 | V157: 0 | W157: 1 | X157: 16 | Y157: 0 | Z157: 0 | AA157: 3 | AB157: 1 | AC157: 25 | AD157: 5 | AE157: 2 | AF157: 47
A158: 2 | B158: 2-C | E158: 11 | F158: 99 | G158: 174 | H158: 284 | I158: 19 | J158: 74 | K158: 13 | L158: 95 | M158: 8 | N158: 37 | O158: 19 | P158: 19 | Q158: 0 | R158: 0 | S158: 2 | T158: 0 | U158: 0 | V158: 0 | W158: 0 | X158: 3 | Y158: 0 | Z158: 0 | AA158: 0 | AB158: 0 | AC158: 8 | AD158: 4 | AE158: 0 | AF158: 10
A159: 2 | B159: 2-D | E159: 12 | F159: 154 | G159: 408 | H159: 574 | I159: 10 | J159: 173 | K159: 31 | L159: 202 | M159: 18 | N159: 61 | O159: 32 | P159: 47 | Q159: 1 | R159: 1 | S159: 3 | T159: 1 | U159: 0 | V159: 0 | W159: 0 | X159: 3 | Y159: 0 | Z159: 0 | AA159: 0 | AB159: 1 | AC159: 11 | AD159: 4 | AE159: 2 | AF159: 20
A160: 3 | B160: 3-A | E160: 20 | F160: 155 | G160: 478 | H160: 653 | I160: 44 | J160: 165 | K160: 32 | L160: 237 | M160: 25 | N160: 68 | O160: 56 | P160: 26 | Q160: 0 | R160: 7 | S160: 13 | T160: 0 | U160: 0 | V160: 0 | W160: 2 | X160: 10 | Y160: 0 | Z160: 0 | AA160: 0 | AB160: 1 | AC160: 3 | AD160: 4 | AE160: 7 | AF160: 17
A161: 3 | B161: 3-B | E161: 38 | F161: 111 | G161: 726 | H161: 875 | I161: 60 | J161: 269 | K161: 33 | L161: 333 | M161: 27 | N161: 74 | O161: 59 | P161: 20 | Q161: 0 | R161: 3 | S161: 9 | T161: 1 | U161: 0 | V161: 0 | W161: 2 | X161: 7 | Y161: 0 | Z161: 0 | AA161: 1 | AB161: 0 | AC161: 1 | AD161: 2 | AE161: 2 | AF161: 15
A162: 3 | B162: 3-C | E162: 2 | F162: 66 | G162: 431 | H162: 499 | I162: 4 | J162: 69 | K162: 13 | L162: 206 | M162: 57 | N162: 71 | O162: 64 | P162: 15 | Q162: 0 | R162: 3 | S162: 6 | T162: 0 | U162: 0 | V162: 0 | W162: 0 | X162: 3 | Y162: 0 | Z162: 0 | AA162: 1 | AB162: 1 | AC162: 2 | AD162: 3 | AE162: 5 | AF162: 9
A163: 3 | B163: 3-D | E163: 9 | F163: 89 | G163: 547 | H163: 645 | I163: 33 | J163: 180 | K163: 20 | L163: 268 | M163: 26 | N163: 78 | O163: 13 | P163: 27 | Q163: 0 | R163: 0 | S163: 9 | T163: 0 | U163: 0 | V163: 0 | W163: 1 | X163: 3 | Y163: 0 | Z163: 0 | AA163: 0 | AB163: 0 | AC163: 4 | AD163: 2 | AE163: 3 | AF163: 13
A164: 4 | B164: 4-A | E164: 70 | F164: 402 | G164: 1940 | H164: 2412 | I164: 175 | J164: 795 | K164: 92 | L164: 867 | M164: 68 | N164: 165 | O164: 159 | P164: 91 | Q164: 3 | R164: 9 | S164: 26 | T164: 0 | U164: 0 | V164: 0 | W164: 3 | X164: 10 | Y164: 0 | Z164: 1 | AA164: 6 | AB164: 0 | AC164: 10 | AD164: 4 | AE164: 12 | AF164: 53
A165: 4 | B165: 4-B | E165: 4 | F165: 29 | G165: 96 | H165: 129 | I165: 2 | J165: 40 | K165: 2 | L165: 52 | M165: 5 | N165: 15 | O165: 3 | P165: 10 | Q165: 0 | R165: 0 | S165: 3 | T165: 0 | U165: 0 | V165: 0 | W165: 0 | X165: 1 | Y165: 0 | Z165: 0 | AA165: 0 | AB165: 0 | AC165: 0 | AD165: 0 | AE165: 2 | AF165: 5
A166: 4 | B166: 4-C | E166: 1 | F166: 28 | G166: 117 | H166: 146 | I166: 9 | J166: 54 | K166: 8 | L166: 58 | M166: 2 | N166: 3 | O166: 6 | P166: 6 | Q166: 0 | R166: 0 | S166: 4 | T166: 0 | U166: 0 | V166: 0 | W166: 0 | X166: 2 | Y166: 0 | Z166: 0 | AA166: 0 | AB166: 0 | AC166: 1 | AD166: 0 | AE166: 0 | AF166: 6
A167: 4 | B167: 4-D | E167: 2 | F167: 32 | G167: 348 | H167: 382 | I167: 12 | J167: 90 | K167: 19 | L167: 165 | M167: 22 | N167: 22 | O167: 35 | P167: 17 | Q167: 0 | R167: 1 | S167: 5 | T167: 0 | U167: 0 | V167: 0 | W167: 0 | X167: 1 | Y167: 0 | Z167: 0 | AA167: 0 | AB167: 1 | AC167: 1 | AD167: 1 | AE167: 6 | AF167: 14
A168: 5 | B168: 5-A | E168: 1 | F168: 51 | G168: 264 | H168: 316 | I168: 30 | J168: 101 | K168: 10 | L168: 102 | M168: 17 | N168: 44 | O168: 8 | P168: 4 | Q168: 0 | R168: 0 | S168: 0 | T168: 0 | U168: 0 | V168: 0 | W168: 0 | X168: 1 | Y168: 0 | Z168: 0 | AA168: 0 | AB168: 0 | AC168: 2 | AD168: 1 | AE168: 0 | AF168: 3
A169: 5 | B169: 5-B | E169: 0 | F169: 12 | G169: 108 | H169: 120 | I169: 11 | J169: 47 | K169: 1 | L169: 44 | M169: 2 | N169: 7 | O169: 3 | P169: 5 | Q169: 0 | R169: 0 | S169: 1 | T169: 0 | U169: 0 | V169: 0 | W169: 0 | X169: 1 | Y169: 0 | Z169: 0 | AA169: 1 | AB169: 0 | AC169: 0 | AD169: 0 | AE169: 0 | AF169: 1
A170: 5 | B170: 5-C | E170: 23 | F170: 156 | G170: 561 | H170: 740 | I170: 17 | J170: 164 | K170: 23 | L170: 341 | M170: 48 | N170: 68 | O170: 58 | P170: 21 | Q170: 0 | R170: 4 | S170: 12 | T170: 0 | U170: 0 | V170: 0 | W170: 2 | X170: 13 | Y170: 0 | Z170: 0 | AA170: 0 | AB170: 0 | AC170: 5 | AD170: 3 | AE170: 13 | AF170: 33
A171: 5 | B171: 5-D | E171: 63 | F171: 446 | G171: 1733 | H171: 2242 | I171: 107 | J171: 633 | K171: 60 | L171: 1037 | M171: 99 | N171: 165 | O171: 94 | P171: 47 | Q171: 1 | R171: 13 | S171: 25 | T171: 0 | U171: 0 | V171: 0 | W171: 9 | X171: 35 | Y171: 0 | Z171: 1 | AA171: 2 | AB171: 0 | AC171: 14 | AD171: 10 | AE171: 21 | AF171: 78
Q172: |<--- Counts as Noted at left (Individuals, Service Auth Lines, etc.) | AF172: --->|
A173: (Distinct) Number of Individuals with approved Jump-Start Service Authorization Lines these 6 months
A174: Number of Individuals | E174: 179 | F174: 1110 | G174: 5932 | H174: =SUM(E174:G174) -> 7221 | I174: 521 | J174: 2134 | K174: 287 | L174: 2632 | M174: 260 | N174: 748 | O174: 532 | P174: 107 | Q174: 155 | R174: 356 | S174: 2865 | T174: 54 | U174: 39 | V174: 0 | W174: 126 | X174: 2006 | Y174: 0 | Z174: 3 | AA174: 155 | AB174: 121 | AC174: 340 | AD174: 306 | AE174: 2101 | AF174: =H174 -> 7221
A175: Percent of possible Individuals | E175: =E174/E150 -> 0.5440729483 | F175: =F174/F150 -> 0.367428004 | G175: 0.5152883947 | H175: 0.485870004 | I175: 0.5907029478 | J175: 0.5012919897 | K175: 0.5285451197 | L175: 0.4624033732 | M175: 0.4467353952 | N175: 0.5544848036 | O175: 0.5623678647 | P175: 0.1751227496
A176: (Distinct) Number of (approved Jump-Start) Service Authorization Lines (SALs) these 6 months
A177: Number of Jump-Start Service Authorization Lines | E177: 302 | F177: 2013 | G177: 11455 | H177: =SUM(E177:G177) -> 13770 | I177: 928 | J177: 3913 | K177: 540 | L177: 5017 | M177: 513 | N177: 1646 | O177: 1055 | P177: 158 | Q177: 198 | R177: 487 | S177: 4143 | T177: 70 | U177: 39 | V177: 0 | W177: 184 | X177: 3469 | Y177: 0 | Z177: 3 | AA177: 243 | AB177: 207 | AC177: 767 | AD177: 607 | AE177: 3353 | AF177: =H177 -> 13770
A178: Number of SA Lines per Person | E178: =E177/E174 -> 1.687150838 | F178: =F177/F174 -> 1.813513514 | G178: 1.931051922 | H178: 1.906938097 | I178: 1.781190019 | J178: 1.833645736 | K178: 1.881533101 | L178: 1.906155015 | M178: 1.973076923 | N178: 2.200534759 | O178: 1.983082707 | P178: 1.476635514 | Q178: =IFERROR(Q177/Q174,"") -> 1.277419355 | R178: =IFERROR(R177/R174,"") -> 1.367977528 | S178: 1.446073298 | T178: 1.296296296 | U178: 1 | W178: 1.46031746 | X178: 1.729312064 | Z178: 1 | AA178: 1.567741935 | AB178: 1.710743802 | AC178: 2.255882353 | AD178: 1.983660131 | AE178: 1.595906711 | AF178: 1.906938097
